bitfinex-derivatives/quotes_SOLF0:USTF0_20250424
["timestamp","ask_amount","ask_price","bid_price","bid_amount"]
[1745536751083,5.82429437,151.26,151.24,6.609]
[1745536751786,5.82429437,151.26,151.21,5.82429437]
[1745536752885,5.82429437,151.26,151.25,6.6087]
[1745536757491,5.81892135,151.26,151.25,6.6087]
[1745536758091,5.81892135,151.28,151.27,6.6078]
[1745536760790,28.97638847,151.29,151.27,6.6078]
[1745536761192,28.97638847,151.29,151.26,6.6081]
[1745536761394,5.81638847,151.28,151.26,6.6081]
[1745536762190,5.81638847,151.27,151.25,6.6085]
[1745536762390,5.81638847,151.26,151.22,23.16]
[1745536762691,5.81638847,151.24,151.23,6.6092]
[1745536764494,23.16,151.29,151.23,5.81638847]
[1745536764698,12.42388847,151.28,151.24,1.9864]
[1745536765397,5.81638847,151.28,151.26,6.608]
[1745536765902,5.81638847,151.28,151.27,6.6079]
[1745536766398,5.81638847,151.28,151.26,6.6081]
[1745536767794,28.97638847,151.29,151.24,7.80278847]
[1745536768398,28.97638847,151.29,151.27,6.6076]
[1745536768594,28.97638847,151.29,151.24,7.80278847]
[1745536769199,28.97638847,151.29,151.27,6.6075]
[1745536769499,28.97638847,151.29,151.24,7.80278847]
[1745536770299,28.97638847,151.29,151.28,6.6074]
[1745536774303,28.97638847,151.29,151.24,7.80278847]
[1745536774304,35.58338847,151.29,151.27,6.6077]
[1745536774504,28.97638847,151.29,151.24,7.80278847]
[1745536774803,5.81638847,151.27,151.24,7.80278847]
[1745536775306,5.81638847,151.27,151.26,6.6081]
[1745536776508,5.81638847,151.27,151.24,6.6091]
[1745536776805,5.81638847,151.27,151.23,23.16]
[1745536777197,12.42458847,151.27,151.23,23.16]
[1745536777808,12.42458847,151.27,151.25,6.6084]
[1745536779306,5.81638847,151.27,151.25,6.6084]
[1745536780308,12.42428847,151.27,151.25,6.6084]
[1745536780707,5.81638847,151.27,151.24,6.609]
[1745536781008,5.81638847,151.25,151.24,6.609]
[1745536785705,1.1507556,151.36,151.24,23.16]
[1745536785911,5.81638847,151.32,151.27,5.81638847]
[1745536786214,5.81638847,151.28,151.23,23.16]
[1745536786402,5.81638847,151.26,151.23,23.16]
[1745536786810,5.81638847,151.26,151.25,6.6087]
[1745536787011,5.81638847,151.26,151.25,8.26110587]
[1745536790815,5.81638847,151.26,151.25,6.6087]
[1745536800332,5.81638847,151.26,151.24,6.609]
[1745536800830,5.81638847,151.26,151.22,6.6098]
[1745536801031,5.81638847,151.24,151.22,6.6098]
[1745536801432,5.81638847,151.24,151.23,6.6096]
[1745536801931,5.81638847,151.26,151.25,6.6084]
[1745536815942,5.81638847,151.26,151.24,6.609]
[1745536816146,5.81638847,151.25,151.24,6.609]
[1745536823951,28.97638847,151.27,151.26,6.6083]
[1745536824151,28.97638847,151.27,151.22,5.81638847]
[1745536824351,35.58448847,151.27,151.22,5.81638847]
[1745536824651,35.58448847,151.27,151.24,6.6088]
[1745536824853,35.58448847,151.27,151.22,5.81638847]
[1745536825755,35.58448847,151.27,151.25,6.6086]
[1745536830659,35.58448847,151.27,151.26,6.6083]
[1745536830660,28.97638847,151.27,151.26,6.6083]
[1745536830953,23.16,151.27,151.26,6.6083]
[1745536831657,5.81638847,151.29,151.28,6.6073]
[1745536832052,5.81638847,151.29,151.25,5.81638847]
[1745536832960,12.42338847,151.29,151.27,6.6077]
[1745536833160,5.81638847,151.29,151.27,6.6077]
[1745536835457,28.97638847,151.3,151.28,6.6074]
[1745536836460,23.16,151.3,151.29,6.607]
[1745536836762,5.81638847,151.32,151.28,5.81638847]
[1745536836964,35.58188847,151.33,151.3,6.6062]
[1745536837163,23.16,151.33,151.3,5.81638847]
[1745536837766,23.16,151.33,151.31,6.6061]
[1745536837967,23.16,151.33,151.3,5.81638847]
[1745536838162,5.81638847,151.34,151.3,5.81638847]
[1745536838765,5.81638847,151.34,151.27,23.16]
[1745536838766,28.97638847,151.36,151.32,5.81638847]
[1745536839265,23.16,151.36,151.33,1.65193894]
[1745536839468,23.16,151.36,151.34,1.65193894]
[1745536839665,23.16,151.36,151.35,1.65193894]
[1745536839970,28.97638847,151.36,151.27,23.16]
[1745536840266,5.81638847,151.31,151.27,23.16]
[1745536840566,5.81638847,151.31,151.3,6.6066]
[1745536841369,28.95638847,151.31,151.25,6.6085]
[1745536841666,5.81638847,151.27,151.25,6.6085]
[1745536841867,5.81638847,151.27,151.21,28.95638847]
[1745536842467,5.81638847,151.25,151.21,28.95638847]
[1745536842869,5.81638847,151.25,151.23,6.6094]
[1745536844270,5.81638847,151.25,151.24,6.6092]
[1745536845675,5.81638847,151.25,151.23,6.6094]
[1745536846773,5.81638847,151.25,151.24,6.6092]
[1745536849374,5.81638847,151.25,151.23,6.6094]
[1745536851276,12.42518847,151.25,151.22,6.6099]
[1745536852077,5.81638847,151.23,151.19,11.64398847]
[1745536852876,5.81638847,151.23,151.22,6.6101]
[1745536853269,5.81638847,151.23,151.21,6.6103]
[1745536854874,5.81638847,151.23,151.22,6.6101]
[1745536855675,5.81638847,151.25,151.24,6.6088]
[1745536857776,5.81638847,151.25,151.19,5.8276]
[1745536857976,5.81638847,151.23,151.19,5.8276]
[1745536858176,12.42618847,151.23,151.18,28.95638847]
[1745536858376,12.42618847,151.23,151.21,6.6104]
[1745536858377,5.81638847,151.23,151.21,6.6104]
[1745536859373,5.81638847,151.23,151.22,6.6101]
[1745536859575,5.81638847,151.23,151.18,23.14]
[1745536859772,12.42608847,151.23,151.18,23.14]
[1745536860280,12.42608847,151.23,151.21,6.6104]
[1745536860480,5.81638847,151.23,151.21,6.6104]
[1745536860981,5.81638847,151.23,151.18,23.14]
[1745536861579,5.81638847,151.23,151.21,6.6102]
[1745536862080,5.81638847,151.23,151.22,6.6101]
[1745536862681,5.81638847,151.25,151.23,6.6093]
[1745536862980,5.81638847,151.26,151.21,5.81638847]
[1745536864582,5.81638847,151.26,151.24,6.6089]
[1745536865286,12.42488847,151.26,151.24,6.6089]
[1745536865581,5.81638847,151.26,151.23,6.6094]
[1745536865777,5.81638847,151.24,151.23,6.6094]
[1745536866983,5.81638847,151.24,151.22,6.6098]
[1745536868881,5.81638847,151.24,151.23,6.6096]
[1745536869983,5.81638847,151.24,151.22,6.6099]
[1745536870982,5.81638847,151.24,151.23,6.6096]
[1745536873088,5.81638847,151.24,151.19,5.81638847]
[1745536873587,12.42578847,151.24,151.19,5.81638847]
[1745536874687,5.81638847,151.24,151.22,6.6098]
[1745536875287,12.42588847,151.24,151.21,6.6103]
[1745536876289,5.81638847,151.22,151.21,6.6103]
[1745536878783,5.81638847,151.22,151.2,6.6107]
[1745536879089,5.81638847,151.22,151.15,34.74808847]
[1745536879290,5.81638847,151.2,151.15,34.74808847]
[1745536879492,12.42738847,151.2,151.18,6.6116]
[1745536880788,5.81638847,151.2,151.18,6.6116]
[1745536882392,12.42738847,151.2,151.18,6.6116]
[1745536885197,5.81638847,151.2,151.18,6.6116]
[1745536885398,5.81638847,151.2,151.19,6.6114]
[1745536886497,5.81638847,151.22,151.21,6.6104]
[1745536886697,28.97638847,151.23,151.21,6.6104]
[1745536887199,28.97638847,151.23,151.2,6.6107]
[1745536887401,5.81638847,151.21,151.16,5.81638847]
[1745536887897,6.611,151.2,151.18,6.6116]
[1745536888501,5.81638847,151.19,151.17,6.6121]
[1745536890699,5.81638847,151.19,151.15,5.7717]
[1745536891506,5.81638847,151.19,151.18,6.6118]
[1745536892907,23.16,151.23,151.18,5.81638847]
[1745536892908,28.97638847,151.23,151.18,5.81638847]
[1745536894003,5.81638847,151.21,151.16,28.97638847]
[1745536894511,5.81638847,151.21,151.19,6.611]
[1745536894710,5.81638847,151.21,151.16,28.97638847]
[1745536895206,5.81638847,151.21,151.2,6.6109]
[1745536896205,29.7698,151.23,151.21,6.6104]
[1745536896412,5.81638847,151.28,151.22,5.81638847]
[1745536896609,23.16,151.27,151.22,5.81638847]
[1745536896909,23.16,151.27,151.25,6.6085]
[1745536897608,5.81638847,151.29,151.24,5.81638847]
[1745536898308,12.42368847,151.29,151.26,6.608]
[1745536899704,5.81638847,151.29,151.24,5.81638847]
[1745536899906,23.16,151.34,151.28,5.81638847]
[1745536900210,28.97638847,151.34,151.28,5.81638847]
[1745536900406,6.6053,151.33,151.3,6.6063]
[1745536900611,28.97638847,151.34,151.3,6.6063]
[1745536900812,6.6055,151.33,151.3,6.6063]
[1745536901111,28.97638847,151.34,151.29,6.6068]
[1745536901313,12.42238847,151.32,151.29,6.6068]
[1745536901916,6.6065,151.31,151.28,12.42358847]
[1745536902214,5.81638847,151.3,151.25,5.81638847]
[1745536902513,12.42318847,151.3,151.27,6.6076]
[1745536902714,12.42318847,151.3,151.25,5.81638847]
[1745536903313,5.81638847,151.3,151.28,6.6074]
[1745536903712,12.42298847,151.3,151.28,6.6074]
[1745536905114,5.81638847,151.3,151.28,6.6074]
[1745536907417,6.6063,151.31,151.28,6.6074]
[1745536907610,12.42268847,151.31,151.28,6.6074]
[1745536909815,5.81638847,151.29,151.25,5.81638847]
[1745536910020,5.81638847,151.29,151.24,23.16]
[1745536910321,12.42358847,151.29,151.24,28.97638847]
[1745536910818,5.81638847,151.29,151.24,28.97638847]
[1745536911520,5.81638847,151.29,151.27,6.6076]
[1745536912116,5.81638847,151.29,151.28,6.6074]
[1745536912620,23.14,151.3,151.28,6.6074]
[1745536914424,23.14,151.3,151.29,6.607]
[1745536914823,5.81638847,151.32,151.26,5.81638847]
[1745536915122,6.6063,151.31,151.28,6.6072]
[1745536915421,5.81638847,151.3,151.28,6.6072]
[1745536915930,5.81638847,151.3,151.29,6.607]
[1745536917727,5.81638847,151.3,151.23,5.81638847]
[1745536917929,5.81638847,151.27,151.23,5.81638847]
[1745536918122,6.6083,151.26,151.21,34.92968847]
[1745536918931,6.6083,151.26,151.24,6.6091]
[1745536919129,12.42438847,151.27,151.21,34.92968847]
[1745536919324,5.81638847,151.27,151.22,5.81638847]
[1745536920129,5.81638847,151.27,151.25,6.6085]
[1745536920330,23.14,151.29,151.26,5.81638847]
[1745536921224,23.14,151.29,151.28,6.6074]
[1745536921525,5.81638847,151.3,151.26,5.81638847]
[1745536922128,5.81638847,151.3,151.29,6.607]
[1745536922329,28.99638847,151.32,151.26,5.81638847]
[1745536922530,28.99638847,151.32,151.3,6.6063]
[1745536922931,28.99638847,151.32,151.26,5.81638847]
[1745536923126,35.60238847,151.32,151.29,6.6068]
[1745536923831,5.81638847,151.3,151.29,6.6068]
[1745536930335,35.60248847,151.32,151.3,6.6064]
[1745536930535,28.99638847,151.32,151.3,6.6064]
[1745536932033,35.60218847,151.32,151.3,6.6064]
[1745536933938,6.6061,151.31,151.29,6.6068]
[1745536935733,5.81638847,151.3,151.22,23.18]
[1745536935937,5.81638847,151.23,151.19,28.99638847]
[1745536936335,5.81638847,151.23,151.22,6.6101]
[1745536938344,5.81638847,151.23,151.19,23.18]
[1745536938535,5.81638847,151.21,151.16,34.84528847]
[1745536938840,5.81638847,151.21,151.2,6.6109]
[1745536939542,5.81638847,151.21,151.19,6.6112]
[1745536939840,5.81638847,151.21,151.16,34.84528847]
[1745536940045,5.81638847,151.19,151.16,23.18]
[1745536940733,5.81638847,151.19,151.17,6.6118]
[1745536941137,5.81638847,151.19,151.16,23.18]
[1745536941437,5.81638847,151.19,151.17,6.6119]
[1745536941946,5.81638847,151.19,151.18,6.6118]
[1745536946245,23.18,151.22,151.17,5.81638847]
[1745536946441,23.18,151.22,151.19,5.81638847]
[1745536946647,5.81638847,151.25,151.21,5.81638847]
[1745536946946,29.01638847,151.26,151.22,5.81638847]
[1745536947147,29.01638847,151.26,151.21,5.81638847]
[1745536947838,5.81638847,151.25,151.21,5.81638847]
[1745536948141,5.81638847,151.23,151.19,9.75118847]
[1745536948339,5.81638847,151.24,151.19,9.75118847]
[1745536948550,5.81638847,151.24,151.22,6.6098]
[1745536951150,12.42568847,151.24,151.21,6.6103]
[1745536951351,5.81638847,151.24,151.18,23.2]
[1745536951552,5.81638847,151.22,151.15,23.22]
[1745536951751,5.81638847,151.21,151.19,6.611]
[1745536951952,5.81638847,151.21,151.17,5.81638847]
[1745536952153,5.81638847,151.22,151.17,5.81638847]
[1745536952555,5.81638847,151.22,151.2,6.6107]
[1745536957062,5.81638847,151.21,151.2,6.6107]
[1745536957563,5.81638847,151.22,151.21,6.6105]
[1745536957763,5.81638847,151.23,151.18,5.81638847]
[1745536959154,5.81638847,151.23,151.22,6.6101]
[1745536962166,5.81638847,151.25,151.24,6.6092]
[1745536964566,12.42538847,151.25,151.19,32.78838847]
[1745536964769,5.81638847,151.23,151.19,32.78838847]
[1745536965167,5.81638847,151.23,151.22,6.6101]
[1745536966370,5.81638847,151.23,151.21,6.6103]
[1745536966760,5.81638847,151.23,151.19,26.972]
[1745536968274,5.81638847,151.23,151.22,6.6101]
[1745536974071,23.2,151.26,151.21,5.81638847]
[1745536975276,5.81638847,151.25,151.21,5.81638847]
[1745536975473,5.81638847,151.25,151.23,6.6094]
[1745536976277,5.81638847,151.25,151.22,6.6098]
[1745536976577,5.81638847,151.23,151.22,6.6098]
[1745536978480,5.81638847,151.23,151.21,6.6103]
[1745536978883,5.81638847,151.23,151.18,5.81638847]
[1745536980580,5.81638847,151.23,151.22,6.6101]
[1745536983685,6.609,151.25,151.22,6.6101]
[1745536983982,5.81638847,151.23,151.18,5.81638847]
[1745536984477,5.81638847,151.23,151.22,6.6098]
[1745536984673,6.6101,151.22,151.17,1.9474]
[1745536984874,5.81638847,151.21,151.16,29.03638847]
[1745536985081,5.81638847,151.19,151.18,6.6116]
[1745536988290,5.81638847,151.19,151.17,6.6122]
[1745536988491,12.42838847,151.18,151.13,23.22]
[1745536988696,5.81638847,151.15,151.11,3.9999]
[1745536989494,5.81638847,151.15,151.13,6.6137]
[1745536989696,5.81638847,151.15,151.11,3.9999]
[1745536989894,5.81638847,151.15,151.13,6.6137]
[1745536990395,5.81638847,151.15,151.11,3.9999]
[1745536990595,5.81638847,151.15,151.13,6.6136]
[1745536990797,5.81638847,151.15,151.11,3.9999]
[1745536991296,5.81638847,151.15,151.14,6.6136]
[1745536992194,5.81638847,151.17,151.12,5.81638847]
[1745536992498,29.03638847,151.18,151.13,5.81638847]
[1745536992701,29.03638847,151.18,151.16,6.6124]
[1745536994597,29.03638847,151.18,151.17,6.6122]
[1745536995297,5.81638847,151.2,151.15,5.81638847]
[1745536995503,5.81638847,151.18,151.13,5.81638847]
[1745536995699,5.81638847,151.17,151.13,5.81638847]
[1745536996504,5.81638847,151.17,151.12,7.69678847]
[1745536997004,5.81638847,151.19,151.14,5.81638847]
[1745536997507,5.81638847,151.19,151.17,6.612]
[1745536998709,12.42788847,151.19,151.16,6.6125]
[1745536999109,5.81638847,151.17,151.16,6.6125]
[1745536999610,5.81638847,151.17,151.15,6.6129]
[1745537000111,5.81638847,151.17,151.16,6.6127]
[1745537001014,23.24,151.21,151.14,5.81638847]
[1745537001206,5.81638847,151.2,151.14,5.81638847]
[1745537001407,5.81638847,151.18,151.14,5.81638847]
[1745537001711,5.81638847,151.18,151.17,6.6122]
[1745537002105,5.81638847,151.18,151.16,6.6124]
[1745537002310,5.81638847,151.17,151.16,6.6124]
[1745537005209,29.05638847,151.17,151.05,36.4748]
[1745537005414,5.81638847,151.13,151.08,5.81638847]
[1745537005813,5.81638847,151.15,151.1,5.81638847]
[1745537006012,29.05638847,151.17,151.12,5.81638847]
[1745537006308,29.05638847,151.17,151.15,6.6129]
[1745537007410,29.05638847,151.17,151.14,6.6133]
[1745537008618,5.81638847,151.15,151.13,6.6139]
[1745537008813,5.81638847,151.15,151.1,9.88108847]
[1745537009615,5.81638847,151.15,151.11,5.81638847]
[1745537010214,5.81638847,151.15,151.13,6.6136]
[1745537011918,12.42948847,151.15,151.13,6.6136]
[1745537012119,12.42948847,151.15,151.09,23.24]
[1745537012120,5.81638847,151.14,151.11,6.6146]
[1745537012416,5.81638847,151.13,151.11,6.6146]
[1745537013222,5.81638847,151.13,151.12,6.6144]
[1745537014014,5.81638847,151.13,151.11,6.6147]
[1745537014219,12.43048847,151.13,151.09,5.81638847]
[1745537014519,5.81638847,151.12,151.07,5.81638847]
[1745537014718,5.81638847,151.12,151.08,5.81638847]
[1745537015316,5.81638847,151.12,151.11,6.6149]
[1745537016120,5.81638847,151.13,151.12,6.6142]
[1745537016322,5.81638847,151.14,151.1,5.81638847]
[1745537016523,5.81638847,151.15,151.1,5.81638847]
[1745537016720,5.81638847,151.15,151.13,6.6139]
[1745537017022,5.81638847,151.15,151.1,5.81638847]
[1745537017823,5.81638847,151.15,151.13,6.6138]
[1745537018923,12.42958847,151.15,151.13,6.6138]
[1745537019424,5.81638847,151.14,151.12,6.6142]
[1745537019724,5.81638847,151.13,151.08,5.81638847]
[1745537021024,5.81638847,151.11,151.08,5.81638847]
[1745537021323,5.81638847,151.11,151.1,6.6153]
[1745537024324,5.81638847,151.11,151.09,6.6155]
[1745537026826,5.81638847,151.11,151.1,6.6153]
[1745537027627,5.81638847,151.11,151.09,6.6157]
[1745537027926,5.81638847,151.1,151.09,6.6157]
[1745537028226,5.81638847,151.11,151.09,6.6157]
[1745537028627,5.81638847,151.12,151.07,5.81638847]
[1745537029127,12.43088847,151.12,151.07,5.81638847]
[1745537030127,12.43088847,151.12,151.09,6.6154]
[1745537032830,12.43088847,151.12,151.1,6.6153]
[1745537034924,6.615,151.11,151.09,6.6155]
[1745537035227,5.81638847,151.1,151.09,6.6155]
[1745537036032,5.81638847,151.1,151.08,6.616]
[1745537036232,12.43178847,151.1,151.06,23.38]
[1745537036432,12.43178847,151.1,151.05,2.0367]
[1745537036636,12.43178847,151.1,151.07,6.6162]
[1745537037339,6.6158,151.09,151.06,6.6169]
[1745537037632,5.81638847,151.08,151.06,6.6169]
[1745537038432,5.81638847,151.08,151.07,6.6166]
[1745537039530,5.81638847,151.1,151.06,5.81638847]
[1745537040135,5.81638847,151.1,151.09,6.6157]
[1745537043635,5.81638847,151.12,151.06,5.81638847]
[1745537043833,6.6137,151.14,151.1,5.81638847]
[1745537043834,5.81638847,151.14,151.1,5.81638847]
[1745537044740,23.38,151.16,151.1,5.81638847]
[1745537045038,5.81638847,151.15,151.11,5.81638847]
[1745537045233,5.81638847,151.15,151.13,6.6138]
[1745537046439,5.81638847,151.14,151.13,6.6138]
[1745537046840,5.81638847,151.14,151.12,6.6142]
[1745537047038,5.81638847,151.13,151.12,6.6142]
[1745537049939,5.81638847,151.15,151.1,5.81638847]
[1745537050642,5.81638847,151.15,151.14,6.6136]
[1745537063643,29.19638847,151.16,151.15,6.6131]
[1745537069842,23.34,151.19,151.18,6.6118]
[1745537070237,5.81638847,151.2,151.18,6.6118]
[1745537070541,12.42728847,151.2,151.18,6.6118]
[1745537070945,5.81638847,151.2,151.19,6.6114]
[1745537072850,35.76648847,151.22,151.2,6.6109]
[1745537073048,35.76648847,151.22,151.16,5.81638847]
[1745537073245,29.15638847,151.22,151.16,5.81638847]
[1745537073950,29.15638847,151.22,151.19,6.6111]
[1745537074251,29.15638847,151.22,151.16,5.81638847]
[1745537074451,35.76668847,151.22,151.19,6.611]
[1745537075350,35.76668847,151.22,151.2,6.6109]
[1745537076250,6.6105,151.21,151.19,6.6112]
[1745537077651,5.81638847,151.2,151.19,6.6112]
[1745537077950,5.81638847,151.2,151.18,6.6116]
[1745537079952,12.42738847,151.2,151.18,6.6116]
[1745537085654,5.81638847,151.2,151.14,5.81638847]
[1745537085855,5.81638847,151.17,151.14,5.81638847]
[1745537086057,5.81638847,151.17,151.12,31.19138847]
[1745537086356,5.81638847,151.16,151.12,25.375]
[1745537086655,5.81638847,151.16,151.11,7.74998847]
[1745537087348,12.42908847,151.16,151.13,6.6136]
[1745537088356,12.42908847,151.16,151.14,6.6135]
[1745537088654,5.81638847,151.15,151.14,6.6135]
[1745537089354,29.05638847,151.18,151.16,6.6127]
[1745537089556,29.05638847,151.18,151.13,5.81638847]
[1745537089756,35.66838847,151.18,151.15,6.6128]
[1745537090055,23.24,151.18,151.14,5.81638847]
[1745537090656,23.24,151.18,151.16,6.6125]
[1745537092050,5.81638847,151.19,151.14,5.81638847]
[1745537093957,5.81638847,151.19,151.17,6.612]
[1745537095457,12.42788847,151.19,151.17,6.612]
[1745537095854,5.81638847,151.19,151.17,6.612]
[1745537097556,5.81638847,151.19,151.18,6.6118]
[1745537105265,29.07638847,151.21,151.2,6.6109]
[1745537106570,23.26,151.21,151.2,6.6109]
[1745537106969,5.81638847,151.22,151.21,6.6105]
[1745537107567,5.81638847,151.22,151.2,6.6107]
[1745537107968,12.42668847,151.22,151.2,6.6107]
[1745537108168,5.81638847,151.22,151.14,7.83568847]
[1745537108370,5.81638847,151.19,151.14,7.83568847]
[1745537108572,5.81638847,151.19,151.17,6.6121]
[1745537109270,12.42798847,151.19,151.17,6.6121]
[1745537110774,5.81638847,151.19,151.17,6.6121]
[1745537113777,5.81638847,151.19,151.18,6.6118]
[1745537117181,12.42778847,151.19,151.17,6.612]
[1745537117778,5.81638847,151.19,151.18,6.6118]
[1745537118473,23.18,151.2,151.19,6.6114]
[1745537118677,5.81638847,151.21,151.19,6.6114]
[1745537119484,12.42698847,151.21,151.19,6.6114]
[1745537120881,5.81638847,151.2,151.19,6.6114]
[1745537121282,5.81638847,151.2,151.18,6.6116]
[1745537121581,5.81638847,151.2,151.15,5.81638847]
[1745537122483,12.42738847,151.2,151.15,5.81638847]
[1745537122683,12.42738847,151.2,151.17,6.6118]
[1745537122984,12.42738847,151.2,151.15,5.81638847]
[1745537123181,12.42738847,151.2,151.17,6.6118]
[1745537123484,5.81638847,151.18,151.14,2.0193]
[1745537123884,5.81638847,151.18,151.16,6.6124]
[1745537125188,5.81638847,151.18,151.17,6.6122]
[1745537128089,5.81638847,151.18,151.06,13.2338]
[1745537128293,5.81638847,151.11,151.06,11.85398847]
[1745537128687,23.18,151.14,151.01,23.40158947]
[1745537128688,5.81638847,151.07,151.01,23.40158947]
[1745537128983,5.81638847,151.07,151.01,29.21797794]
[1745537129791,5.81638847,151.07,151.04,6.6176]
[1745537130085,5.81638847,151.07,151.01,29.21797794]
[1745537130386,23.18,151.1,151.01,29.21797794]
[1745537130387,5.81638847,151.05,151.01,5.81638847]
[1745537131191,5.81638847,151.05,151.02,6.6187]
[1745537131487,5.81638847,151.03,151.0,29.2176]
[1745537132386,5.81638847,151.03,151.02,6.6188]
[1745537132586,5.81638847,151.05,151.01,5.81638847]
[1745537133089,5.81638847,151.05,151.04,6.6179]
[1745537136700,29.19638847,151.09,151.03,5.81638847]
[1745537138195,29.19638847,151.09,151.07,6.6164]
[1745537139095,29.19638847,151.09,151.08,6.6162]
[1745537140294,29.19638847,151.09,151.07,6.6164]
[1745537140596,29.19638847,151.09,151.03,5.81638847]
[1745537140797,5.81638847,151.09,151.05,5.81638847]
[1745537140992,5.81638847,151.09,151.08,6.6162]
[1745537144798,5.81638847,151.11,151.1,6.6153]
[1745537145598,5.81638847,151.13,151.08,5.81638847]
[1745537145797,5.81638847,151.14,151.09,5.81638847]
[1745537146501,5.81638847,151.14,151.13,6.6137]
[1745537150403,5.81638847,151.14,151.09,5.81638847]
[1745537151302,12.43018847,151.14,151.11,6.6146]
[1745537151602,5.81638847,151.14,151.11,6.6146]
[1745537152905,12.42998847,151.14,151.11,6.6146]
[1745537154907,12.43008847,151.14,151.11,6.6147]
[1745537155306,12.43008847,151.14,151.08,29.19638847]
[1745537155307,5.81638847,151.14,151.12,6.6142]
[1745537155507,5.81638847,151.14,151.1,5.81638847]
[1745537156007,5.81638847,151.14,151.13,6.614]
[1745537156201,23.38,151.15,151.1,5.81638847]
[1745537156402,29.19638847,151.18,151.12,5.81638847]
[1745537157510,29.19638847,151.18,151.16,6.6124]
[1745537159709,29.19638847,151.18,151.12,5.81638847]
[1745537159909,5.81638847,151.16,151.12,5.81638847]
[1745537161008,12.42908847,151.16,151.13,6.6139]
[1745537161509,12.42908847,151.16,151.14,6.6135]
[1745537161711,5.81638847,151.16,151.14,6.6135]
[1745537162105,12.42888847,151.17,151.14,6.6135]
[1745537162910,5.81638847,151.17,151.15,6.613]
[1745537164611,12.42868847,151.17,151.15,6.613]
[1745537164915,5.81638847,151.17,151.12,5.81638847]
[1745537165213,12.42878847,151.17,151.12,5.81638847]
[1745537165514,12.42878847,151.17,151.14,6.6132]
[1745537165916,5.81638847,151.17,151.12,5.81638847]
[1745537166213,5.81638847,151.17,151.16,6.6127]
[1745537166413,5.81638847,151.17,151.12,5.81638847]
[1745537166915,5.81638847,151.17,151.15,6.6131]
[1745537167619,5.81638847,151.17,151.14,6.6134]
[1745537168009,12.42858847,151.17,151.14,6.6134]
[1745537168316,5.81638847,151.17,151.15,6.613]
[1745537169216,12.42868847,151.17,151.15,6.613]
[1745537169819,12.42868847,151.17,151.14,6.6134]
[1745537170118,5.81638847,151.16,151.14,6.6134]
[1745537170319,12.42928847,151.16,151.11,5.81638847]
[1745537171520,6.6131,151.15,151.12,6.6141]
[1745537171916,12.42928847,151.16,151.13,6.6139]
[1745537172416,12.42928847,151.16,151.11,5.81638847]
[1745537172613,5.81638847,151.16,151.14,6.6135]
[1745537173412,12.42908847,151.16,151.14,6.6135]
[1745537173616,5.81638847,151.16,151.14,6.6135]
[1745537173819,5.81638847,151.16,151.15,6.6131]
[1745537174121,29.19638847,151.18,151.13,5.81638847]
[1745537175017,29.19638847,151.18,151.14,6.6133]
[1745537175317,6.6123,151.17,151.14,6.6133]
[1745537175822,29.19638847,151.18,151.15,6.6129]
[1745537176018,35.80848847,151.18,151.15,6.6129]
[1745537176217,29.19638847,151.18,151.14,6.6134]
[1745537176622,6.6125,151.17,151.14,6.6134]
[1745537179223,6.6128,151.16,151.13,12.43018847]
[1745537179520,12.42918847,151.16,151.12,23.32]
[1745537179721,5.81638847,151.16,151.12,23.32]
[1745537180326,5.81638847,151.16,151.14,6.6133]
[1745537180623,29.19638847,151.18,151.13,5.81638847]
[1745537180823,35.80848847,151.18,151.15,6.6129]
[1745537181621,29.19638847,151.18,151.13,5.81638847]
[1745537181824,29.13638847,151.21,151.15,5.81638847]
[1745537182122,35.74708847,151.21,151.18,6.6114]
[1745537182322,12.42708847,151.21,151.15,5.81638847]
[1745537182824,5.81638847,151.21,151.19,6.611]
[1745537183025,5.81638847,151.21,151.15,5.81638847]
[1745537183829,12.42718847,151.21,151.17,6.612]
[1745537184528,6.611,151.2,151.17,6.612]
[1745537184827,5.81638847,151.21,151.15,5.81638847]
[1745537185130,6.611,151.2,151.15,5.81638847]
[1745537185426,6.611,151.2,151.17,6.612]
[1745537186031,6.611,151.2,151.18,6.6117]
[1745537186924,29.13638847,151.22,151.17,5.81638847]
[1745537187528,35.74668847,151.22,151.19,6.6111]
[1745537188039,23.32,151.22,151.17,5.81638847]
[1745537188623,25.2764,151.27,151.21,5.81638847]
[1745537188826,5.81638847,151.26,151.21,5.81638847]